bitfinex-derivatives/quotes_ETHF0:USTF0_20251031
["timestamp","ask_amount","ask_price","bid_price","bid_amount"]
[1761942020744,3.2078,3887.9,3887.5,0.46327]
[1761942021048,3.2078,3887.9,3887.3,0.00187147]
[1761942021049,0.08046133,3887.8,3887.6,0.46326]
[1761942021249,3.2078,3887.9,3887.6,0.46326]
[1761942021448,0.0804612,3887.8,3887.6,0.46326]
[1761942021649,3.2078,3887.9,3887.6,0.46326]
[1761942021850,0.0804612,3887.8,3887.6,0.46326]
[1761942022048,3.2078,3887.9,3887.6,0.46326]
[1761942022251,0.0804612,3887.8,3887.6,0.46326]
[1761942022549,3.2078,3887.9,3887.6,0.46326]
[1761942022850,0.0804612,3887.8,3887.6,0.46326]
[1761942023052,3.2078,3887.9,3887.3,0.00187147]
[1761942023348,0.08046167,3887.8,3887.6,0.2293]
[1761942023649,0.08046167,3887.7,3887.6,0.2293]
[1761942024445,0.08046167,3887.7,3887.3,0.00187147]
[1761942024446,0.2197,3887.4,3887.3,0.00187147]
[1761942024644,0.30017117,3887.4,3887.3,0.00187147]
[1761942026648,0.08047117,3887.4,3887.3,0.69037147]
[1761942026851,3.2078,3887.5,3887.4,0.68848]
[1761942027148,3.2078,3887.5,3887.3,0.00187147]
[1761942027149,3.3391,3888.0,3887.5,0.46326]
[1761942027356,0.08046394,3887.9,3887.5,0.46326]
[1761942027555,0.08046394,3887.8,3887.7,0.2252]
[1761942028158,0.08046394,3887.8,3887.7,0.68845]
[1761942028852,3.2078,3888.4,3888.1,0.46319]
[1761942029055,0.08045453,3888.3,3888.2,0.2252]
[1761942029250,0.08045453,3888.3,3888.2,0.68838]
[1761942029443,0.08045453,3888.3,3888.0,0.1299]
[1761942029444,3.2078,3888.8,3888.5,0.46314]
[1761942029645,3.2078,3888.8,3888.7,0.2252]
[1761942029855,0.08044738,3888.8,3888.7,0.2252]
[1761942030049,0.08044738,3888.8,3888.5,0.46314]
[1761942030050,0.30014738,3888.8,3888.5,0.46314]
[1761942030255,0.08044738,3888.7,3888.4,0.46316]
[1761942030452,0.08044738,3888.6,3888.5,0.2252]
[1761942031257,0.08044738,3888.6,3888.5,0.3551]
[1761942032958,0.30014738,3888.6,3888.5,0.2252]
[1761942033857,0.08044738,3888.6,3888.5,0.2252]
[1761942035457,0.08044738,3888.6,3888.5,0.3551]
[1761942036051,0.08044738,3888.6,3888.5,0.2252]
[1761942038059,0.08044738,3888.6,3888.5,0.3551]
[1761942039159,0.08044738,3888.6,3888.5,0.2252]
[1761942040959,0.2165,3888.3,3888.2,0.46318]
[1761942041166,0.29694882,3888.3,3888.2,0.46318]
[1761942041365,0.29694882,3888.3,3888.2,0.69768]
[1761942041565,0.08044882,3888.3,3888.2,0.69768]
[1761942052469,0.08044882,3888.3,3888.2,0.2345]
[1761942052773,0.08044882,3888.3,3888.2,0.69768]
[1761942054568,0.00239906,3889.0,3888.9,0.2345]
[1761942054768,0.00239906,3889.0,3888.9,0.6976]
[1761942057272,3.2078,3889.6,3889.5,0.3644]
[1761942057671,3.2078,3889.6,3889.5,0.2345]
[1761942058575,0.00332624,3889.6,3889.5,0.69753]
[1761942060479,0.00332624,3889.6,3889.5,0.2345]
[1761942060686,0.00332624,3889.6,3889.5,0.69753]
[1761942060894,0.00332624,3889.6,3889.5,0.82743]
[1761942063984,0.45929,3890.1,3890.0,0.82437]
[1761942065083,0.46151365,3890.1,3890.0,0.82437]
[1761942068380,3.2078,3890.9,3890.8,0.46287]
[1761942068587,3.28820318,3890.9,3890.8,0.46287]
[1761942069386,3.29078355,3890.9,3890.8,0.46555828]
[1761942070575,0.08298355,3890.9,3890.8,0.46555828]
[1761942070781,0.0025851,3890.9,3890.8,0.46555828]
[1761942071879,3.2078,3891.7,3890.8,0.46555828]
[1761942072084,0.3614,3891.5,3891.4,0.4628]
[1761942072986,0.36455927,3891.5,3891.3,0.46281]
[1761942073188,0.36455927,3891.5,3891.4,0.4628]
[1761942073491,0.13795927,3891.5,3891.4,0.4628]
[1761942078388,0.13795927,3891.5,3891.3,0.46281]
[1761942080089,0.13795927,3891.5,3891.4,0.4628]
[1761942080298,0.2266,3891.2,3891.1,3.2078]
[1761942080489,0.13795927,3891.5,3890.8,0.00268828]
[1761942080490,0.3615,3891.0,3890.8,0.00268828]
[1761942080990,0.2266,3890.9,3890.8,0.00268828]
[1761942081791,3.51479497,3890.9,3890.8,0.00268828]
[1761942084897,3.51479497,3890.9,3890.2,3.2078]
[1761942084898,0.2166,3890.3,3890.2,3.2078]
[1761942085089,0.29699497,3890.3,3890.2,3.2078]
[1761942085285,0.2166,3890.3,3890.2,3.2078]
[1761942085490,0.29700339,3890.3,3890.2,3.2078]
[1761942085889,0.29700339,3890.3,3890.2,3.20998156]
[1761942088397,0.29700339,3890.3,3890.2,0.00218156]
[1761942096789,0.2166,3889.7,3889.6,1.15215403]
[1761942096997,0.3477,3889.5,3889.4,3.2078]
[1761942097303,0.3477,3889.5,3889.4,3.67084]
[1761942097504,0.3477,3889.5,3889.4,3.2078]
[1761942097704,0.42812036,3889.5,3889.4,3.2078]
[1761942098001,0.2166,3889.1,3889.0,3.67088]
[1761942098396,0.2166,3889.1,3889.0,3.6736237]
[1761942098992,0.3477,3889.5,3889.4,0.46303]
[1761942099197,0.42812428,3889.5,3889.4,0.46303]
[1761942099703,0.42812428,3889.5,3889.2,0.46305]
[1761942099897,0.3477,3889.5,3889.2,0.46305]
[1761942100110,0.3477,3889.5,3889.0,3.6736237]
[1761942100298,0.2281,3889.1,3889.0,3.2105437]
[1761942100497,0.30853004,3889.1,3889.0,0.0027437]
[1761942100697,3.51633004,3889.1,3889.0,0.0027437]
[1761942100903,3.51633004,3889.1,3889.0,4.37e-05]
[1761942101609,3.51633004,3889.1,3887.7,3.2078]
[1761942101610,0.2281,3887.8,3887.7,3.2078]
[1761942101798,0.1376,3888.0,3887.3,3.2078]
[1761942101799,0.1376,3887.5,3887.3,3.2078]
[1761942102000,0.2281,3887.4,3887.3,3.2078]
[1761942102601,0.23041256,3887.4,3887.3,3.21047346]
[1761942105705,0.23041256,3887.4,3887.3,0.00267346]
[1761942107204,0.2281,3887.1,3887.0,0.46332]
[1761942107407,0.2281,3886.8,3886.7,3.67116]
[1761942108412,0.2281,3886.8,3886.7,3.67439824]
[1761942108913,0.2281,3886.8,3886.7,0.46659824]
[1761942109416,0.2281,3886.8,3886.7,0.00323824]
[1761942110710,0.2281,3886.8,3886.7,0.46659824]
[1761942112409,0.2281,3886.8,3886.7,0.00323824]
[1761942112914,0.2281,3886.8,3886.7,3.824e-05]
[1761942112915,3.4359,3886.8,3886.7,3.824e-05]
[1761942113117,3.4359,3886.8,3885.9,0.46345]
[1761942113118,0.2281,3885.9,3885.8,3.2078]
[1761942113315,0.2281,3885.7,3885.6,0.46349]
[1761942114014,0.2281,3885.7,3885.6,0.46534485]
[1761942120222,0.2281,3885.7,3885.6,0.00185485]
[1761942120414,0.2281,3884.8,3884.7,0.02574234]
[1761942120609,0.1376,3885.0,3884.9,0.46358]
[1761942120814,0.3657,3885.0,3884.9,0.46358]
[1761942121124,0.3657,3885.0,3884.7,0.02574234]
[1761942121316,0.2281,3884.8,3884.7,0.02574234]
[1761942121712,0.2281,3884.8,3884.7,0.02818467]
[1761942122018,0.2281,3884.8,3884.7,0.49178467]
[1761942122418,0.2281,3884.8,3884.7,0.02818467]
[1761942122624,0.2281,3884.8,3884.7,0.49178467]
[1761942122818,0.2281,3884.8,3884.7,0.02818467]
[1761942124520,0.30861954,3884.8,3884.7,0.02818467]
[1761942126319,3.51641954,3884.8,3884.7,0.02818467]
[1761942126519,3.51641954,3884.8,3883.6,1.15932]
[1761942126520,0.2281,3884.3,3883.7,3.2078]
[1761942126721,0.30861954,3884.3,3884.1,0.46367]
[1761942126922,0.30861954,3884.3,3884.1,3.67147]
[1761942127123,0.30861954,3884.3,3884.1,3.2078]
[1761942127322,0.30861954,3884.3,3884.1,3.67147]
[1761942127926,0.3104417,3884.3,3884.2,0.42308152]
[1761942128330,0.31045043,3884.3,3884.2,0.88674152]
[1761942128723,0.31045043,3884.3,3884.2,0.42308152]
[1761942129834,0.31045043,3884.3,3884.2,0.42868152]
[1761942129835,0.08235043,3884.3,3884.2,0.42868152]
[1761942132231,0.30105043,3884.3,3884.2,0.42308152]
[1761942133527,0.08235043,3884.3,3884.2,0.42308152]
[1761942133928,0.30105043,3884.3,3884.2,0.42308152]
[1761942136431,0.30105043,3884.3,3884.2,0.88674152]
[1761942137925,0.30105043,3884.3,3884.2,0.42308152]
[1761942138124,0.30105043,3884.3,3884.2,0.88674152]
[1761942139320,0.08235043,3884.3,3884.2,0.89264152]
[1761942142133,0.1376,3885.0,3884.9,0.46768]
[1761942143031,0.13962011,3885.0,3884.9,3.67548]
[1761942143529,0.00202011,3885.0,3884.9,3.67548]
[1761942146033,3.2078,3885.8,3885.7,0.46348]
[1761942146732,0.1376,3886.0,3885.3,1.15882]
[1761942146733,0.1376,3886.0,3885.9,0.46346]
[1761942147032,0.00306997,3886.0,3885.9,0.46346]
[1761942147333,0.13276997,3886.0,3885.9,0.46346]
[1761942147529,0.34706997,3886.0,3885.9,0.46346]
[1761942148331,0.13276997,3886.0,3885.9,0.46346]
[1761942150435,0.00306997,3886.0,3885.9,0.46346]
[1761942150947,0.13276997,3886.0,3885.9,0.46346]
[1761942151237,0.13276997,3886.0,3885.2,3.2078]
[1761942151238,0.1297,3885.5,3885.2,3.2078]
[1761942151438,0.1297,3885.5,3885.4,0.46352]
[1761942154144,0.21019616,3885.5,3885.4,0.46352]
[1761942156249,0.1297,3885.5,3885.4,0.46352]
[1761942161247,0.13276997,3886.0,3885.9,0.46346]
[1761942164356,0.00306997,3886.0,3885.9,0.46346]
[1761942164757,0.1358,3886.5,3886.4,0.4634]
[1761942165956,0.13784173,3886.5,3886.4,0.4634]
[1761942167161,0.00204173,3886.5,3886.4,0.4634]
[1761942170160,0.00204173,3886.5,3886.4,1.15254403]
[1761942173160,0.13954173,3886.5,3886.4,0.4634]
[1761942173366,0.35504173,3886.5,3886.4,0.4634]
[1761942174669,0.13954173,3886.5,3886.4,0.4634]
[1761942175369,0.13954173,3886.5,3886.4,1.15550361]
[1761942179263,0.35504173,3886.5,3886.4,1.15550361]
[1761942179763,0.13954173,3886.5,3886.4,1.15550361]
[1761942182171,0.1358,3887.0,3886.9,0.46334]
[1761942183171,0.21956964,3887.0,3886.9,0.46334]
[1761942183577,0.13909817,3887.0,3886.9,0.46334]
[1761942184675,0.00329817,3887.0,3886.9,0.46334]
[1761942185477,0.00329817,3887.0,3886.9,1.1558947]
[1761942188178,0.14079817,3887.0,3886.9,1.1558947]
[1761942190179,0.00329817,3887.0,3886.9,0.46334]
[1761942190379,0.13369817,3887.0,3886.9,1.1562644]
[1761942191081,0.00329817,3887.0,3886.9,1.1562644]
[1761942191268,0.00329817,3887.0,3886.9,0.46334]
[1761942191473,0.13369817,3887.0,3886.9,0.46334]
[1761942193281,0.13369817,3887.0,3886.9,1.38958898]
[1761942195277,0.00329817,3887.0,3886.9,0.46334]
[1761942195683,0.36,3888.0,3887.9,0.46322]
[1761942195884,0.44045306,3888.0,3887.9,0.46322]
[1761942196084,0.21795306,3888.0,3887.9,0.46322]
[1761942196488,0.44045306,3888.0,3887.9,0.46322]
[1761942196790,0.44355931,3888.0,3887.9,0.46644366]
[1761942197284,0.22105931,3888.0,3887.9,0.46644366]
[1761942200892,0.44355931,3888.0,3887.9,0.46644366]
[1761942201588,8.44355931,3888.0,3887.9,0.00322366]
[1761942202895,0.44355931,3888.0,3887.9,0.00322366]
[1761942203586,8.44355931,3888.0,3887.9,0.00322366]
[1761942212299,0.2154,3887.6,3887.5,0.6935607]
[1761942212595,0.2154,3887.4,3887.3,3.67109]
[1761942212795,0.29585306,3887.4,3887.3,3.67109]
[1761942212995,0.29585306,3887.4,3887.3,3.2078]
[1761942213194,0.29585306,3887.4,3887.3,3.67109]
[1761942213599,0.29586007,3887.4,3887.3,3.67388632]
[1761942213795,0.14060625,3888.0,3887.5,1.15816]
[1761942214097,0.08045557,3887.9,3887.8,0.46323]
[1761942214495,0.29585557,3887.9,3887.8,0.46323]
[1761942219607,0.29585557,3887.9,3887.4,1.1582]
[1761942219608,0.2154,3887.7,3887.6,0.6940342]
[1761942219813,0.29585557,3887.7,3887.6,0.6940342]
[1761942220108,0.2154,3887.7,3887.6,0.6940342]
[1761942220310,0.29585766,3887.7,3887.6,0.6940342]
[1761942220610,0.29585766,3887.7,3887.6,1.1572942]
[1761942221810,0.29585766,3887.7,3887.6,0.6940342]
[1761942222108,0.29585766,3887.7,3887.6,1.1572942]
[1761942222714,0.29585766,3887.7,3887.6,0.46326]
[1761942224024,0.08045766,3887.7,3887.6,0.46326]
[1761942224822,0.08045766,3887.7,3887.6,1.38863894]
[1761942227224,0.1375,3888.5,3887.6,1.3871214]
[1761942227524,0.1304,3889.0,3887.3,3.21059632]
[1761942227525,0.1304,3889.0,3888.9,0.4631]
[1761942228322,0.1326728,3889.0,3888.9,1.15666635]
[1761942229428,0.1326728,3889.0,3888.9,0.4631]
[1761942229927,0.1326728,3889.0,3888.9,1.15666635]
[1761942230320,0.1326728,3889.0,3888.9,0.4631]
[1761942232422,0.025,3889.7,3889.4,0.46304]
[1761942232622,0.025,3889.7,3889.6,0.46302]
[1761942233130,0.025,3889.7,3889.6,3.67082]
[1761942233518,0.02761179,3889.7,3889.6,3.67082]
[1761942234827,1.179e-05,3889.7,3889.6,3.67082]
[1761942247736,1.179e-05,3889.7,3889.6,4.35826263]
[1761942248041,1.179e-05,3889.7,3889.6,45.39672242]
[1761942248237,1.179e-05,3889.7,3889.6,44.47082]
[1761942248834,1.179e-05,3889.7,3889.6,45.85967364]
[1761942250145,1.179e-05,3889.7,3889.6,44.47082]
[1761942250343,1.179e-05,3889.7,3889.6,45.85967364]
[1761942251939,1.179e-05,3889.7,3889.6,44.47082]
[1761942253344,0.1293,3891.0,3890.9,0.46286]
[1761942253546,0.1293,3891.0,3890.9,3.67066]
[1761942254544,0.13201398,3891.0,3890.9,3.6727866]
[1761942261251,0.13201398,3891.0,3890.9,4.36046121]
[1761942262452,0.13201398,3891.0,3890.9,3.6727866]
[1761942264647,0.35441398,3891.0,3890.9,3.90022959]
[1761942264852,0.43479145,3891.0,3890.9,0.0021266]
[1761942269555,0.43479145,3891.0,3890.9,0.4649866]
[1761942270064,0.43479145,3891.0,3890.9,0.0021266]
[1761942275558,0.43479145,3891.0,3890.9,0.4649866]
[1761942276557,0.43479145,3891.0,3890.9,1.15683344]
[1761942277263,0.08309145,3891.0,3890.9,0.4649866]
[1761942277464,0.1293,3892.0,3891.4,0.4628]
[1761942277664,0.1293,3892.0,3891.4,3.6706]
[1761942277665,0.20967202,3891.5,3891.4,3.6706]
[1761942278465,0.21285645,3891.5,3891.4,3.6706]
[1761942280261,0.13248443,3891.5,3891.4,4.59232457]
[1761942281759,0.43526005,3891.5,3891.4,3.89879757]
[1761942282159,0.43526005,3891.5,3891.4,3.2078]
[1761942283559,0.222,3891.3,3891.2,0.69099757]
[1761942283759,0.222,3891.2,3891.1,0.69099757]
[1761942283964,0.30237562,3891.2,3891.1,0.69099757]
[1761942286068,0.30237562,3891.2,3891.1,1.15383757]
[1761942286772,0.30237562,3891.2,3891.1,0.69099757]
[1761942289773,0.222,3891.1,3891.0,4.36163757]
[1761942290071,0.30237562,3891.1,3891.0,4.36163757]
[1761942290573,0.30237562,3891.1,3891.0,3.89879757]
[1761942291079,0.30237562,3891.1,3891.0,4.36164757]
[1761942292062,0.30237562,3891.1,3891.0,3.89879757]
[1761942292576,0.30237562,3891.1,3891.0,4.36164757]
[1761942292877,0.30237562,3891.1,3891.0,3.89879757]
[1761942294771,0.08037562,3891.1,3891.0,4.36164757]
[1761942294971,0.222,3891.2,3891.1,0.46283]
[1761942295173,0.30238422,3891.2,3891.1,0.46283]
[1761942296376,0.222,3891.1,3891.0,3.89879757]
[1761942296676,0.30238422,3891.1,3891.0,3.89879757]
[1761942299978,0.30238422,3891.1,3891.0,0.69099757]
[1761942300178,0.3613,3891.0,3890.9,1.15598417]
[1761942300379,0.44168422,3891.0,3890.9,1.15598417]
[1761942301974,0.44168422,3891.0,3890.9,0.69312417]
[1761942302175,0.44168422,3891.0,3890.9,0.0021266]
[1761942302176,8.44168422,3891.0,3890.9,0.0021266]
[1761942302372,0.222,3890.3,3890.2,3.89879757]
[1761942302575,0.30238422,3890.3,3890.2,3.89879757]
[1761942302881,0.1393,3890.5,3890.4,0.46292]
[1761942303084,0.21969636,3890.5,3890.4,0.46292]
[1761942303279,0.1393,3890.5,3890.4,0.46607144]
[1761942305274,0.1393,3891.0,3890.9,0.46286]
[1761942305478,0.44168596,3891.0,3890.9,3.67066]
[1761942305670,0.21968596,3891.0,3890.9,3.67066]
[1761942306680,0.21968596,3891.0,3890.9,3.2078]
[1761942306875,0.44168596,3891.0,3890.9,3.2078]
[1761942307380,0.21968596,3891.0,3890.9,3.67066]
[1761942307884,0.21968596,3891.0,3890.9,3.2078]
[1761942308092,0.21968596,3891.0,3890.9,3.67066]
[1761942313079,0.1393,3891.0,3890.9,4.59162173]
[1761942313385,0.13248443,3891.5,3891.4,0.4628]
[1761942313578,0.21286244,3891.5,3891.4,0.4628]
[1761942314191,0.13248443,3891.5,3891.4,1.38409377]
[1761942314485,0.13248443,3891.5,3891.4,0.4628]
[1761942315077,0.13248443,3891.5,3891.4,1.38337414]
[1761942316190,0.13248443,3891.5,3891.4,0.4628]
[1761942316388,0.13248443,3891.5,3891.4,1.38337414]
[1761942316692,0.00318443,3891.5,3891.4,1.38337414]
[1761942316880,0.13228443,3891.5,3891.4,1.38337414]
[1761942318291,0.00318443,3891.5,3891.4,1.38337414]
[1761942318493,0.13018443,3891.5,3891.4,1.38337414]
[1761942319190,0.13018443,3891.5,3891.4,0.4628]
[1761942319889,0.13018443,3891.5,3891.4,1.38337414]
[1761942320091,0.13018443,3891.5,3891.4,0.4628]
[1761942321488,0.13018443,3891.5,3891.3,4.12837414]
[1761942321687,0.13018443,3891.5,3891.3,3.67061]
[1761942321688,0.2263,3891.4,3891.3,3.67061]
[1761942324991,0.2263,3891.4,3891.3,3.2078]
[1761942325302,0.3533,3891.0,3890.9,3.2078]
[1761942325486,0.43368701,3891.0,3890.9,3.2078]
[1761942325692,0.3533,3890.5,3890.4,0.00315144]
[1761942325897,0.43369958,3890.5,3890.4,0.00315144]
[1761942326192,0.2263,3890.1,3890.0,3.2078]
[1761942326583,0.127,3890.5,3890.0,3.2078]
[1761942326785,0.08040224,3890.4,3890.0,3.2078]
[1761942326990,0.127,3890.5,3890.0,3.2078]
[1761942326991,0.08040224,3890.3,3890.0,3.2078]
[1761942327191,0.127,3890.5,3890.0,3.21072387]
[1761942327394,0.2263,3890.1,3890.0,3.21072387]
[1761942329707,0.127,3890.5,3890.0,3.67368387]
[1761942329904,0.08040522,3890.4,3890.0,3.21072387]
[1761942330107,0.2263,3890.1,3890.0,3.21072387]
[1761942330797,0.2263,3890.1,3890.0,3.67369387]
[1761942331503,0.127,3890.5,3890.0,3.67369387]
[1761942331697,0.2263,3890.2,3890.1,0.46295]
[1761942332196,0.2263,3890.2,3890.0,3.21072387]
[1761942332403,0.2263,3890.2,3890.1,0.46296]
[1761942340404,0.127,3890.5,3890.0,3.67369387]
[1761942340405,0.2263,3890.1,3890.0,3.67369387]
[1761942342706,0.2263,3890.1,3890.0,3.21072387]
[1761942342902,0.2263,3890.1,3890.0,0.00292387]
[1761942344813,0.2263,3890.1,3890.0,0.46589387]
[1761942345305,0.2263,3890.1,3890.0,0.00292387]
[1761942347407,0.30671247,3890.1,3890.0,0.00292387]
[1761942348004,0.2197,3889.7,3889.6,3.67081]
[1761942349011,0.2197,3889.7,3889.6,3.67346244]
[1761942350208,0.2197,3889.7,3889.6,3.21045244]
[1761942351003,0.2197,3889.7,3889.6,3.67347244]
[1761942352109,0.30011568,3889.7,3889.6,3.67347244]
[1761942356310,0.2197,3889.7,3889.6,3.67347244]
[1761942356510,0.30011569,3889.7,3889.6,3.67347244]
[1761942356711,0.08041569,3889.7,3889.6,3.67347244]
[1761942357714,0.30011569,3889.7,3889.6,3.21045244]
[1761942358215,0.30011569,3889.7,3889.6,3.67347244]
[1761942358715,0.08041569,3889.7,3889.6,3.67347244]
[1761942364314,0.08041569,3889.7,3889.6,3.21045244]
[1761942365016,0.08041569,3889.7,3889.6,3.67347244]
[1761942366818,0.30011569,3889.7,3889.6,0.00265244]
[1761942367117,0.2197,3888.9,3888.8,0.92057414]
[1761942367327,0.2197,3888.8,3888.7,3.2078]
[1761942367513,0.30012521,3888.8,3888.7,3.2078]
[1761942368119,0.30012521,3888.8,3888.7,0.00221702]
[1761942369017,0.30012521,3888.8,3888.7,0.46533702]
[1761942369211,0.13,3889.0,3888.9,0.4631]
[1761942369411,0.21043294,3889.0,3888.7,0.00221702]
[1761942369722,0.08043294,3888.9,3888.7,0.00221702]
[1761942369923,0.13,3889.0,3888.7,0.00221702]
[1761942370123,0.08043264,3888.9,3888.7,0.00221702]
[1761942370324,0.13,3889.0,3888.7,0.00221702]
[1761942370522,0.08043264,3888.9,3888.7,0.00221702]
[1761942370722,0.13,3889.0,3888.7,0.00221702]
[1761942371022,0.2197,3888.8,3888.7,0.00221702]
[1761942371221,0.30013313,3888.8,3888.7,0.00221702]
[1761942372321,0.2197,3888.8,3888.7,0.46533702]
[1761942372516,0.2197,3888.8,3888.7,0.00221702]
[1761942375425,0.13,3889.0,3888.7,0.00221702]
[1761942375626,0.08043328,3888.9,3888.7,0.00221702]
[1761942375819,0.13,3889.0,3888.7,0.00221702]
[1761942376028,0.0804326,3888.9,3888.7,0.00221702]
[1761942376322,0.13,3889.0,3888.7,0.46533702]
[1761942376519,0.0804326,3888.9,3888.7,0.46533702]
[1761942376728,0.13,3889.0,3888.7,0.46533702]
[1761942377020,0.13,3889.0,3888.8,0.46311]
[1761942377021,0.08043261,3888.9,3888.8,0.46311]
[1761942382426,0.08043258,3888.9,3888.8,0.46311]
[1761942383738,0.30343258,3888.9,3888.8,0.46311]
[1761942384633,0.223,3888.8,3888.7,0.00221702]
[1761942385133,3.51123296,3888.8,3888.7,0.00221702]
[1761942385320,0.3505,3888.0,3887.9,3.2078]
[1761942385517,0.3505,3888.0,3887.9,3.67102]
[1761942385720,0.3505,3888.0,3887.9,3.2078]
[1761942386328,0.35255651,3888.0,3887.9,3.20975487]
[1761942387529,0.35255651,3888.0,3887.9,3.67297487]
[1761942387922,0.12955651,3888.0,3887.9,3.67297487]
[1761942390231,0.36015651,3888.0,3887.9,3.20975487]
[1761942390723,0.12955651,3888.0,3887.9,3.67297487]
[1761942391923,0.12955651,3888.0,3887.9,3.20975487]
[1761942392124,0.12955651,3888.0,3887.9,3.67297487]
[1761942393927,0.12955651,3888.0,3887.9,3.20975487]
[1761942394132,0.36015651,3888.0,3887.9,3.20975487]
[1761942396326,0.44060645,3888.0,3887.9,0.00195487]
[1761942403734,0.44061109,3888.0,3887.9,0.00195487]
[1761942405137,0.44061109,3888.0,3887.9,0.46517487]
[1761942406139,0.12955651,3888.0,3887.9,3.67297487]
[1761942408740,0.12955651,3888.0,3887.9,0.00195487]
[1761942408939,0.21000748,3888.0,3887.9,0.00195487]
[1761942411549,0.42620748,3888.0,3887.9,0.00195487]
[1761942413446,0.42620748,3888.0,3887.9,0.46517487]
[1761942413641,0.42620748,3888.0,3887.9,3.20975487]
[1761942414241,0.42620748,3888.0,3887.9,0.00195487]
[1761942419053,0.42620748,3888.0,3887.9,0.46517487]
[1761942419446,0.42620748,3888.0,3887.9,0.00195487]
[1761942421754,0.2162,3887.6,3887.5,0.92057414]
[1761942421951,0.29665097,3887.6,3887.5,0.92057414]
[1761942422153,0.29665097,3887.6,3887.5,1.38384414]
[1761942422346,0.08045097,3887.6,3887.5,1.38384414]
[1761942422546,0.08045097,3887.6,3887.4,4.58974066]
[1761942422747,0.12955651,3888.0,3887.6,0.46325]
[1761942422949,0.08045473,3887.9,3887.6,1.38916677]
[1761942423148,0.08045473,3887.8,3887.6,1.38916677]
[1761942423449,0.29665473,3887.7,3887.6,1.38916677]
[1761942425956,0.08045473,3887.7,3887.6,0.46326]
[1761942427546,0.08045473,3887.7,3887.5,1.84520066]
[1761942427751,0.1294,3887.5,3887.4,5.05566797]
[1761942428054,0.3456,3887.5,3887.4,5.05567797]
[1761942430161,0.3456,3887.5,3887.4,4.59238797]
[1761942430853,0.3456,3887.5,3887.4,5.05566797]
[1761942431660,0.3456,3887.5,3887.4,4.59238797]
[1761942431857,0.42605524,3887.5,3887.4,0.00264731]
[1761942432063,3.63385524,3887.5,3887.4,0.00264731]
[1761942436968,0.42605524,3887.5,3887.4,0.46592731]
[1761942437563,0.42605524,3887.5,3887.4,0.00264731]
[1761942437768,0.42605524,3887.5,3887.4,0.46592731]
[1761942440764,0.42605524,3887.5,3887.4,0.00264731]
[1761942441171,0.42605524,3887.5,3887.4,0.46592731]
[1761942442278,0.42605524,3887.5,3887.4,0.00264731]
[1761942443181,0.42605524,3887.5,3887.4,0.46592731]
[1761942443371,0.42605524,3887.5,3887.4,0.00264731]
[1761942445880,0.42605524,3887.5,3887.4,0.46592731]
[1761942446281,0.42605524,3887.5,3887.4,0.00264731]
[1761942449889,0.42605524,3887.5,3887.4,0.46592731]
[1761942450181,0.42605524,3887.5,3887.4,0.00264731]
[1761942452582,0.3485,3887.0,3886.9,0.92645918]
[1761942452787,0.42897004,3887.0,3886.9,0.92645918]
[1761942453084,0.2185,3886.9,3886.8,0.46335]
[1761942453584,0.2185,3886.9,3886.8,0.46608338]
[1761942454982,0.2185,3886.9,3886.8,0.00273338]
[1761942455183,0.2185,3886.9,3886.8,0.46528338]
[1761942456975,0.29897102,3886.9,3886.8,0.00193338]
[1761942457780,0.29897102,3886.9,3886.8,0.46528338]
[1761942458986,0.29897102,3886.9,3886.8,0.00193338]
[1761942460494,0.29897102,3886.9,3886.8,0.46528338]
[1761942460998,0.29897102,3886.9,3886.8,0.00193338]
[1761942461294,0.29897102,3886.9,3886.8,0.46528338]
[1761942462798,0.29897102,3886.9,3886.8,0.00193338]
[1761942463484,0.29897102,3886.9,3886.8,0.46527338]
[1761942463889,0.2989723,3886.9,3886.8,0.46527338]
[1761942464392,0.2989723,3886.9,3886.8,0.00193338]
[1761942464687,0.2989723,3886.9,3886.6,3.2078]
[1761942464688,0.2185,3886.7,3886.6,3.2078]
[1761942465391,0.2185,3886.7,3886.6,3.67117]
[1761942465792,0.2185,3886.7,3886.6,3.67332702]
[1761942466384,0.2185,3886.7,3886.6,3.5528936]
[1761942468595,0.2185,3886.7,3886.6,3.0895236]
[1761942469894,0.2185,3886.7,3886.6,3.5528936]
[1761942471192,0.2185,3886.7,3886.6,3.0895236]
[1761942471586,0.2185,3886.7,3886.6,3.5528936]
[1761942472797,0.13,3887.0,3886.6,3.0895236]
[1761942472998,0.08047297,3886.9,3886.8,0.46334]
[1761942474994,3.3372,3887.5,3886.7,0.92645918]
[1761942475204,0.08046908,3887.4,3887.3,0.46328]
[1761942476287,0.08046908,3887.4,3887.2,0.46328]
[1761942476599,0.08046908,3887.3,3887.2,0.46328]
[1761942478102,0.08046908,3887.3,3887.1,0.92645918]
[1761942478103,0.1294,3887.5,3887.4,0.46327]
[1761942478404,0.20986094,3887.5,3887.4,0.46327]
[1761942479300,0.20985824,3887.5,3887.4,0.46327]
[1761942482200,0.20985824,3887.5,3887.4,3.67107]
[1761942482201,0.1294,3887.5,3887.4,3.67107]
[1761942482996,0.12955651,3888.0,3887.9,0.46321]
[1761942483193,0.21001108,3888.0,3887.9,0.46321]
[1761942485906,0.21001108,3888.0,3887.6,0.46325]
[1761942486101,0.1375,3887.5,3887.4,4.13425918]
[1761942486410,0.1375,3887.5,3887.4,4.59752918]
[1761942488005,0.1375,3887.5,3887.4,3.67107]
[1761942490503,0.1375,3887.5,3887.4,3.2078]
[1761942490696,0.2169,3887.4,3887.3,0.46328]
[1761942490902,0.1375,3887.5,3887.4,0.46327]
[1761942491202,0.1375,3887.5,3887.4,3.67107]
[1761942491807,0.12955651,3888.0,3887.7,0.46322]
[1761942492006,0.08045367,3887.9,3887.8,0.46322]
[1761942493210,0.08045366,3887.9,3887.8,0.46322]
[1761942493710,0.08045366,3887.9,3887.4,3.2078]
[1761942493902,0.12955651,3888.0,3887.7,0.46323]
[1761942494304,0.2169,3887.8,3887.4,3.11105587]
[1761942494511,0.2169,3886.7,3886.6,0.00215702]
[1761942495400,0.29737521,3886.7,3886.6,0.00215702]
[1761942496409,0.2169,3886.7,3886.6,0.00215702]
[1761942498809,0.29738119,3886.7,3886.6,0.00215702]
[1761942499209,0.2169,3886.7,3886.6,0.00215702]
[1761942499708,0.29738119,3886.7,3886.6,0.00215702]
[1761942500210,0.2169,3886.7,3886.6,0.00215702]
[1761942505110,3.3441,3887.0,3886.6,0.00215702]
[1761942505509,0.2131,3886.7,3886.6,0.00215702]